bitfinex/quotes_SOLUSD_20220119
["timestamp","ask_amount","ask_price","bid_price","bid_amount"]
[1642622570310,150.26415562,136.54,136.42,23.5326]
[1642622570710,11.72237529,136.53,136.42,23.5326]
[1642622572209,13.54950131,136.53,136.42,23.5326]
[1642622573014,73.17,136.52,136.42,23.5326]
[1642622574747,79.29,136.52,136.42,23.5326]
[1642622574950,1.82712602,136.51,136.42,23.5326]
[1642622575148,1.82712602,136.51,136.38,10.53897971]
[1642622575348,10.51,136.5,136.39,24.1789]
[1642622575549,10.51,136.5,136.39,6.0]
[1642622575748,39.99076262,136.49,136.39,6.0]
[1642622575949,39.99076262,136.49,136.38,28.68457971]
[1642622576153,38.1636366,136.49,136.38,28.68457971]
[1642622576351,38.1636366,136.49,136.39,0.25]
[1642622576648,38.1636366,136.49,136.39,2.20939913]
[1642622576852,38.1636366,136.49,136.39,1.95939913]
[1642622577051,38.1636366,136.49,136.38,30.64397884]
[1642622577455,38.1636366,136.49,136.39,0.25]
[1642622577652,38.1636366,136.49,136.39,2.20939913]
[1642622578052,38.1636366,136.49,136.4,1.95939913]
[1642622578455,38.1636366,136.49,136.39,1.95939913]
[1642622579654,38.1636366,136.49,136.38,30.64397884]
[1642622579856,38.1636366,136.49,136.39,2.20939913]
[1642622580062,38.1636366,136.49,136.39,12.71939913]
[1642622580254,38.1636366,136.49,136.4,75.12939913]
[1642622580457,38.1636366,136.49,136.41,18.43481038]
[1642622580655,1.21237529,136.53,136.42,4.89039913]
[1642622580856,1.21237529,136.53,136.43,23.846]
[1642622581054,1.21237529,136.53,136.43,24.096]
[1642622581663,1.21237529,136.53,136.43,26.05539913]
[1642622581664,42.43387261,136.52,136.43,26.05539913]
[1642622581856,42.43387261,136.52,136.43,24.096]
[1642622582554,42.43387261,136.52,136.43,26.05539913]
[1642622586662,42.43387261,136.52,136.43,25.80539913]
[1642622586863,42.43387261,136.52,136.43,23.846]
[1642622588161,42.43387261,136.52,136.44,0.25]
[1642622590668,42.43387261,136.52,136.44,26.28096364]
[1642622590866,1.21237529,136.53,136.44,26.28096364]
[1642622591069,2.06568517,136.55,136.44,26.28096364]
[1642622591267,2.06568517,136.56,136.46,73.17]
[1642622591470,2.06568517,136.57,136.46,73.17]
[1642622591666,2.06568517,136.57,136.47,29.334]
[1642622591866,2.06568517,136.57,136.47,23.084]
[1642622592067,2.06568517,136.56,136.47,23.084]
[1642622592467,2.06568517,136.55,136.47,23.084]
[1642622592903,43.83156842,136.54,136.47,23.084]
[1642622600708,25.15778517,136.56,136.48,0.25]
[1642622600912,2.06568517,136.57,136.48,0.25]
[1642622601708,35.67261598,136.56,136.48,10.76]
[1642622602309,35.67261598,136.56,136.49,22.63273425]
[1642622602708,35.67261598,136.56,136.5,0.25]
[1642622602909,2.06568517,136.6,136.5,0.25]
[1642622603111,2.06568517,136.6,136.5,23.5176]
[1642622603310,2.06568517,136.61,136.5,23.5176]
[1642622603910,40.79393579,136.6,136.5,23.5176]
[1642622604311,40.79393579,136.6,136.51,2.928]
[1642622604710,40.79393579,136.6,136.52,0.25]
[1642622606114,40.79393579,136.6,136.51,0.25]
[1642622611218,40.79393579,136.6,136.51,3.178]
[1642622611651,40.79393579,136.6,136.52,16.51]
[1642622612022,40.79393579,136.6,136.53,0.25]
[1642622621069,40.79393579,136.6,136.52,6.0]
[1642622621472,40.79393579,136.6,136.5,36.7056]
[1642622621667,45.82293579,136.6,136.5,23.2676]
[1642622621869,2.06568517,136.59,136.5,23.2676]
[1642622622267,2.06568517,136.58,136.5,23.2676]
[1642622623267,2.06568517,136.58,136.48,34.1725]
[1642622623469,2.06568517,136.58,136.49,24.6318]
[1642622628075,2.06568517,136.58,136.48,23.6625]
[1642622628277,2.06568517,136.57,136.48,23.6625]
[1642622628878,11.52481119,136.57,136.45,24.097]
[1642622629081,9.69768517,136.57,136.46,0.25]
[1642622630414,34.37878517,136.57,136.46,0.25]
[1642622630617,2.06568517,136.56,136.46,0.25]
[1642622630816,35.64650374,136.55,136.46,0.25]
[1642622636221,35.64650374,136.55,136.45,24.097]
[1642622636222,41.84650374,136.55,136.45,24.097]
[1642622636421,41.84650374,136.55,136.44,10.51]
[1642622636621,43.67362976,136.55,136.45,6.0]
[1642622636823,68.34941493,136.55,136.45,6.0]
[1642622637223,68.34941493,136.55,136.43,23.112]
[1642622637422,77.03228891,136.55,136.43,23.112]
[1642622637623,77.03228891,136.55,136.44,0.25]
[1642622637924,77.03228891,136.55,136.43,23.112]
[1642622638522,150.20228891,136.55,136.43,23.112]
[1642622640224,150.20228891,136.55,136.44,0.25]
[1642622640627,148.13660374,136.55,136.44,0.25]
[1642622641229,148.13660374,136.55,136.44,23.9663]
[1642622642426,74.96660374,136.55,136.44,23.9663]
[1642622642625,74.96660374,136.55,136.45,10.51]
[1642622642626,35.64650374,136.55,136.45,10.51]
[1642622642826,35.64650374,136.55,136.45,13.44]
[1642622643026,35.64650374,136.55,136.46,0.25]
[1642622643226,35.64650374,136.55,136.46,10.76]
[1642622643830,35.64650374,136.55,136.46,34.9039]
[1642622644030,35.64650374,136.55,136.47,21.34787844]
[1642622644229,35.64650374,136.55,136.48,10.76]
[1642622645933,25.24918517,136.58,136.49,2.93]
[1642622646132,23.1835,136.58,136.49,26.9378]
[1642622646333,23.1835,136.58,136.5,10.76]
[1642622646732,2.06568517,136.6,136.5,10.76]
[1642622647032,46.46670849,136.57,136.51,23.2985]
[1642622647232,46.46670849,136.57,136.52,0.25]
[1642622647436,2.06568517,136.6,136.52,0.25]
[1642622648336,2.06568517,136.6,136.52,6.25]
[1642622648534,45.94053667,136.59,136.52,6.25]
[1642622650165,45.94053667,136.59,136.52,6.0]
[1642622650363,48.00622184,136.59,136.52,6.0]
[1642622650561,2.06568517,136.58,136.52,6.0]
[1642622650963,2.06568517,136.58,136.5,6.0]
[1642622651165,2.06568517,136.58,136.5,6.25]
[1642622652366,2.06568517,136.57,136.5,6.25]
[1642622653768,2.06568517,136.58,136.5,6.25]
[1642622656173,2.06568517,136.57,136.5,6.25]
[1642622657371,2.06568517,136.57,136.5,0.25]
[1642622658173,2.06568517,136.57,136.49,23.756]
[1642622659175,2.06568517,136.56,136.49,23.756]
[1642622659780,2.06568517,136.57,136.49,23.756]
[1642622660178,2.06568517,136.56,136.49,23.756]
[1642622662782,2.06568517,136.57,136.49,23.756]
[1642622665088,2.06568517,136.57,136.5,0.25]
[1642622669019,2.06568517,136.56,136.5,0.25]
[1642622678530,40.20593634,136.54,136.5,0.25]
[1642622678731,40.20593634,136.54,136.49,23.756]
[1642622680234,40.20593634,136.54,136.5,0.25]
[1642622680834,40.20593634,136.54,136.49,23.756]
[1642622681836,42.27162151,136.54,136.49,23.756]
[1642622682032,40.20593634,136.54,136.5,0.25]
[1642622683837,40.20593634,136.54,136.49,23.756]
[1642622684036,42.27162151,136.54,136.49,23.756]
[1642622684640,40.20593634,136.54,136.5,0.25]
[1642622685042,2.06568517,136.55,136.5,0.25]
[1642622685939,44.31164334,136.54,136.5,0.25]
[1642622690045,2.06568517,136.55,136.5,0.25]
[1642622691045,45.2737896,136.55,136.5,0.25]
[1642622691547,43.20810443,136.55,136.5,0.25]
[1642622693047,2.06568517,136.56,136.5,0.25]
[1642622693648,2.06568517,136.56,136.5,3.178]
[1642622694048,37.90405336,136.57,136.5,3.178]
[1642622696272,35.83836819,136.57,136.5,3.178]
[1642622697276,37.90405336,136.57,136.5,3.178]
[1642622697576,37.90405336,136.57,136.5,0.25]
[1642622700477,35.83836819,136.57,136.5,0.25]
[1642622701479,37.90405336,136.57,136.5,0.25]
[1642622702282,35.83836819,136.57,136.5,0.25]
[1642622702479,35.83836819,136.57,136.51,2.928]
[1642622702679,2.06568517,136.58,136.52,0.25]
[1642622702883,4.12923972,136.61,136.52,0.25]
[1642622702884,2.06568517,136.59,136.52,0.25]
[1642622703079,32.17791312,136.64,136.52,0.25]
[1642622703080,2.06568517,136.6,136.53,2.928]
[1642622703279,24.3052,136.64,136.53,2.928]
[1642622703280,2.06568517,136.61,136.54,0.25]
[1642622703481,2.06568517,136.61,136.55,2.928]
[1642622703680,2.06568517,136.61,136.56,19.74555705]
[1642622704583,2.06568517,136.62,136.56,19.74555705]
[1642622706585,2.06568517,136.62,136.56,0.25]
[1642622706789,45.20616516,136.63,136.56,0.25]
[1642622707686,45.20616516,136.63,136.56,37.05528984]
[1642622709388,2.06568517,136.63,136.56,37.05528984]
[1642622709586,2.06568517,136.63,136.56,45.32428984]
[1642622709792,2.06568517,136.65,136.57,2.928]
[1642622709988,2.06568517,136.65,136.58,10.51]
[1642622710186,2.06568517,136.67,136.58,11.02]
[1642622710387,2.06568517,136.67,136.59,30.5503]
[1642622710790,2.06568517,136.67,136.6,0.25]
[1642622711191,2.06568517,136.68,136.6,0.25]
[1642622711586,48.20257797,136.69,136.6,0.25]
[1642622711990,46.1368928,136.69,136.6,0.25]
[1642622712388,48.20257797,136.69,136.6,0.25]
[1642622712788,2.06568517,136.68,136.6,3.177]
[1642622712989,48.20257797,136.69,136.6,3.177]
[1642622713390,48.20257797,136.69,136.61,26.45957599]
[1642622713590,48.20257797,136.69,136.6,3.177]
[1642622713793,46.1368928,136.69,136.6,3.177]
[1642622714598,46.1368928,136.69,136.6,49.56066056]
[1642622715503,23.0884,136.7,136.6,49.56066056]
[1642622715699,2.06568517,136.71,136.61,6.0]
[1642622715898,2.06568517,136.71,136.62,36.2685]
[1642622716099,2.06568517,136.74,136.63,6.0]
[1642622716300,2.06568517,136.75,136.65,73.17]
[1642622716500,38.04168893,136.76,136.67,16.88120527]
[1642622716698,38.04168893,136.76,136.68,3.174]
[1642622716898,38.04168893,136.76,136.68,9.174]
[1642622717103,38.04168893,136.76,136.68,9.434]
[1642622717500,25.94128517,136.79,136.68,9.434]
[1642622717699,25.94128517,136.79,136.69,23.0269]
[1642622717900,25.94128517,136.79,136.7,2.924]
[1642622718102,25.94128517,136.79,136.7,9.174]
[1642622718300,23.8756,136.79,136.7,9.174]
[1642622718502,45.27131189,136.78,136.7,9.174]
[1642622718702,45.27131189,136.78,136.7,6.25]
[1642622722026,45.27131189,136.78,136.69,25.9509]
[1642622722235,47.09843791,136.78,136.69,23.0269]
[1642622722627,47.09843791,136.78,136.68,10.51]
[1642622723432,47.09843791,136.78,136.69,0.25]
[1642622725633,73.17,136.77,136.69,0.25]
[1642622726033,45.27131189,136.78,136.69,0.25]
[1642622726332,47.33699706,136.78,136.69,0.25]
[1642622726730,120.50699706,136.78,136.69,0.25]
[1642622727333,122.33412308,136.78,136.67,6.25]
[1642622727934,2.06568517,136.77,136.67,6.25]
[1642622729740,73.17,136.76,136.67,6.25]
[1642622730242,75.23568517,136.76,136.67,6.25]
[1642622731540,75.23568517,136.76,136.67,0.25]
[1642622732041,2.06568517,136.75,136.65,10.51]
[1642622732242,21.80187,136.74,136.64,2.924]
[1642622732441,2.06568517,136.73,136.65,0.25]
[1642622732642,3.89281119,136.73,136.65,0.25]
[1642622732845,2.06568517,136.72,136.65,0.25]
[1642622733042,2.06568517,136.72,136.61,13.436]
[1642622733043,108.05367505,136.71,136.61,13.436]
[1642622733243,108.05367505,136.71,136.6,23.8473]
[1642622733442,110.11936022,136.71,136.6,23.8473]
[1642622734243,110.11936022,136.71,136.61,0.25]
[1642622734645,36.94936022,136.71,136.61,0.25]
[1642622735045,36.94936022,136.71,136.61,27.5774]
[1642622735247,34.88367505,136.71,136.61,27.5774]
[1642622736848,36.94936022,136.71,136.61,27.5774]
[1642622737449,36.94936022,136.71,136.61,24.6514]
[1642622737850,73.17,136.7,136.61,24.6514]
[1642622738051,75.23568517,136.7,136.61,24.6514]
[1642622738649,2.06568517,136.7,136.62,22.51515106]
[1642622739050,34.88367505,136.71,136.63,0.25]
[1642622739289,34.88367505,136.71,136.64,2.926]
[1642622739499,34.88367505,136.71,136.63,0.25]
[1642622739500,36.94936022,136.71,136.63,0.25]
[1642622739688,36.94936022,136.71,136.64,2.926]
[1642622740090,36.94936022,136.71,136.65,0.25]
[1642622740290,36.94936022,136.71,136.63,3.176]
[1642622744791,2.06568517,136.7,136.63,3.176]
[1642622745996,2.06568517,136.71,136.63,3.176]
[1642622746794,2.06568517,136.71,136.63,26.6763]
[1642622747196,2.06568517,136.72,136.63,26.6763]
[1642622747395,2.06568517,136.72,136.64,6.0]
[1642622747596,2.06568517,136.72,136.65,2.926]
[1642622747795,2.06568517,136.72,136.65,3.176]
[1642622748796,2.06568517,136.71,136.65,0.25]
[1642622749700,2.06568517,136.7,136.65,0.25]
[1642622749999,2.06568517,136.7,136.63,23.5003]
[1642622750196,2.06568517,136.7,136.6,34.3573]
[1642622750426,2.06568517,136.69,136.62,0.25]
[1642622750797,40.25881437,136.68,136.62,0.25]
[1642622750997,42.32449954,136.68,136.62,0.25]
[1642622754300,2.06568517,136.68,136.62,0.25]
[1642622754700,2.06568517,136.69,136.63,2.927]
[1642622755100,2.06568517,136.69,136.64,0.25]
[1642622759144,2.06568517,136.68,136.62,3.176]
[1642622759342,2.06568517,136.68,136.62,0.25]
[1642622759544,2.06568517,136.67,136.62,0.25]
[1642622764650,4.12923972,136.7,136.62,0.25]
[1642622764852,4.12923972,136.7,136.63,13.436]
[1642622765053,4.12923972,136.73,136.64,6.0]
[1642622765252,4.12923972,136.74,136.65,2.926]
[1642622765452,4.12923972,136.74,136.65,47.62076298]
[1642622765653,8.27477291,136.76,136.67,73.17]
[1642622765852,4.12923972,136.77,136.67,83.68]
[1642622766052,8.27426771,136.78,136.68,30.8501]
[1642622766253,4.12923972,136.79,136.68,31.1101]
[1642622766453,70.23519147,136.8,136.68,31.1101]
[1642622766858,109.21630989,136.8,136.69,34.85341768]
[1642622767056,109.21630989,136.8,136.7,6.0]
[1642622767256,38.98111842,136.8,136.7,29.5114]
[1642622767857,38.98111842,136.8,136.71,2.924]
[1642622768159,38.98111842,136.8,136.72,26.34576298]
[1642622768459,40.80824444,136.8,136.71,2.924]
[1642622768657,40.80824444,136.8,136.69,2.924]
[1642622768658,64.86042999,136.8,136.69,2.924]
[1642622768857,31.87713087,136.79,136.67,24.04]
[1642622769057,31.87713087,136.79,136.68,6.0]
[1642622769284,1.82712602,136.78,136.68,43.53215938]
[1642622769489,47.52829853,136.77,136.68,43.53215938]
[1642622769684,27.74373972,136.79,136.68,43.53215938]
[1642622769885,27.74373972,136.79,136.69,2.924]
[1642622770785,40.84581216,136.78,136.69,2.924]
[1642622771086,40.84581216,136.78,136.7,0.25]
[1642622774692,96.7845,136.79,136.7,0.25]
[1642622775691,44.64336799,136.78,136.7,0.25]
[1642622777094,117.81336799,136.78,136.7,0.25]
[1642622778699,44.64336799,136.78,136.7,0.25]
[1642622779702,117.81336799,136.78,136.7,0.25]
[1642622780704,117.81336799,136.78,136.69,26.4908]
[1642622782105,117.81336799,136.78,136.7,0.25]
[1642622783006,1.82712602,136.77,136.69,2.924]
[1642622783204,1.82712602,136.77,136.67,2.924]
[1642622783405,10.51,136.76,136.66,22.8994]
[1642622783804,12.33712602,136.76,136.66,22.8994]
[1642622784004,38.9903615,136.75,136.66,22.8994]
[1642622784204,61.7860615,136.75,136.66,48.929]
[1642622784606,70.49618752,136.75,136.64,2.926]
[1642622784810,70.49618752,136.75,136.65,0.25]
[1642622785010,73.17,136.74,136.63,24.5046]
[1642622785207,73.17,136.74,136.63,27.4306]
[1642622786312,73.17,136.74,136.63,24.5046]
[1642622787312,79.699,136.74,136.63,24.5046]
[1642622787515,92.03612602,136.74,136.63,24.5046]
[1642622789222,92.03612602,136.74,136.63,46.01040902]
[1642622790218,90.209,136.74,136.63,46.01040902]
[1642622790417,22.5915,136.73,136.63,46.01040902]
[1642622790618,43.00774103,136.72,136.63,24.5046]
[1642622790817,116.17774103,136.72,136.63,24.5046]
[1642622791419,124.29674103,136.72,136.63,24.5046]
[1642622791821,124.29674103,136.72,136.63,24.2546]
[1642622793222,124.29674103,136.72,136.64,0.25]
[1642622793421,24.7025,136.71,136.62,0.25]
[1642622793621,73.17,136.68,136.61,0.25]
[1642622793824,7.582,136.68,136.61,0.25]
[1642622795025,119.37856025,136.69,136.61,0.25]
[1642622795851,46.20856025,136.69,136.61,0.25]
[1642622796060,46.20856025,136.69,136.61,23.5121]
[1642622800358,73.17,136.68,136.61,23.5121]
[1642622800660,73.17,136.68,136.61,0.25]
[1642622800860,98.0873,136.68,136.59,0.25]
[1642622801059,10.51,136.67,136.54,51.9873]
[1642622801260,10.51,136.67,136.54,49.0603]
[1642622801261,17.463,136.67,136.54,49.0603]
[1642622801461,116.01491254,136.66,136.54,49.0603]
[1642622801660,23.5866,136.65,136.54,49.0603]
[1642622802060,23.5866,136.65,136.54,65.68577593]
[1642622802562,23.5866,136.65,136.55,0.25]
[1642622803164,23.5866,136.65,136.55,6.25]
[1642622803563,23.5866,136.65,136.56,22.9116]
[1642622803764,23.5866,136.65,136.57,0.25]
[1642622804862,23.5866,136.65,136.57,40.63685098]
[1642622807566,23.5866,136.65,136.58,8.928]
[1642622807767,23.5866,136.65,136.59,0.25]
[1642622812872,23.5866,136.65,136.58,26.7151]
[1642622813475,23.5866,136.65,136.58,2.928]
[1642622813971,23.5866,136.65,136.58,25.84358993]
[1642622814172,23.5866,136.65,136.59,0.25]
[1642622821785,39.00409516,136.64,136.59,0.25]
[1642622822186,39.00409516,136.64,136.57,6.25]
[1642622823388,39.00409516,136.64,136.58,2.928]
[1642622824089,39.00409516,136.64,136.56,23.8678]
[1642622825088,39.00409516,136.64,136.57,0.25]
[1642622827092,39.00409516,136.64,136.57,13.40137612]
[1642622827294,23.5866,136.65,136.57,13.40137612]
[1642622827693,15.9876407,136.69,136.57,13.40137612]
[1642622827894,24.2576,136.68,136.57,23.91137612]
[1642622828092,24.2576,136.68,136.58,6.0]
[1642622828293,4.12923972,136.7,136.59,0.25]
[1642622828494,4.12923972,136.71,136.6,10.51]
[1642622828695,4.12923972,136.71,136.61,25.1973]
[1642622828894,4.12923972,136.72,136.61,31.1973]
[1642622829098,4.12923972,136.74,136.62,2.926]
[1642622829292,60.89827118,136.73,136.63,23.6987]
[1642622829493,60.89827118,136.73,136.63,29.6987]
[1642622829693,65.0275109,136.73,136.63,29.6987]
[1642622829895,65.0275109,136.73,136.63,23.6987]
[1642622830297,138.1975109,136.73,136.63,23.6987]
[1642622830503,138.1975109,136.73,136.63,0.25]
[1642622830695,140.02463692,136.73,136.62,24.3947]
[1642622830895,140.02463692,136.73,136.62,30.3947]
[1642622831098,8.27191765,136.72,136.62,24.3947]
[1642622831296,8.27191765,136.72,136.62,0.25]
[1642622831497,23.0104,136.71,136.62,0.25]
[1642622831700,43.25472879,136.7,136.62,0.25]
[1642622833400,45.08185481,136.7,136.57,37.9863]
[1642622833597,8.2654809,136.69,136.57,27.4763]
[1642622833800,18.7754809,136.69,136.57,24.5503]
[1642622834203,14.63923972,136.69,136.56,23.0159]
[1642622834400,14.63923972,136.69,136.57,6.0]
[1642622834600,14.63923972,136.69,136.56,37.53543861]
[1642622834800,24.0136,136.68,136.57,2.927]
[1642622834999,39.01325744,136.67,136.57,3.177]
[1642622835400,39.01325744,136.67,136.58,24.9159]
[1642622835804,112.18325744,136.67,136.59,0.25]
[1642622836402,39.01325744,136.67,136.59,0.25]
[1642622839311,112.18325744,136.67,136.59,0.25]
[1642622839511,39.01325744,136.67,136.59,0.25]
[1642622839910,39.01325744,136.67,136.57,2.927]
[1642622840113,39.01325744,136.67,136.59,0.25]
[1642622841114,39.01325744,136.67,136.58,0.25]
[1642622841513,112.18325744,136.67,136.58,0.25]
[1642622843322,122.69325744,136.67,136.57,0.25]
[1642622843617,122.69325744,136.67,136.56,23.0159]
[1642622843819,122.69325744,136.67,136.57,0.25]
[1642622844937,124.52038346,136.67,136.57,0.25]
[1642622845537,122.69325744,136.67,136.57,0.25]
[1642622847136,122.69325744,136.67,136.55,24.6229]
[1642622847338,54.198768,136.66,136.54,10.51]
[1642622847538,33.6286,136.65,136.55,0.25]
[1642622847737,41.35872602,136.65,136.55,0.25]
[1642622847937,30.363301,136.64,136.55,0.25]
[1642622848139,83.76368971,136.64,136.55,0.25]
[1642622848638,53.40038871,136.64,136.53,0.25]
[1642622848838,73.17,136.63,136.53,0.25]
[1642622849238,22.5098,136.62,136.53,0.25]
[1642622849438,42.22241422,136.61,136.53,0.25]
[1642622850439,6.693595,136.6,136.52,23.0925]
[1642622850640,42.22241422,136.61,136.49,35.457]
[1642622850840,24.2689,136.59,136.5,23.1777]
[1642622851039,32.0599,136.59,136.5,23.1777]
[1642622851340,36.7921991,136.58,136.5,23.1777]
[1642622854244,73.17,136.57,136.5,23.1777]
[1642622855745,73.17,136.57,136.47,10.51]
[1642622855949,24.7925,136.56,136.45,13.438]
[1642622856145,24.7925,136.56,136.41,38.017]
[1642622856146,73.17,136.55,136.41,38.017]
[1642622856346,83.68,136.55,136.41,38.017]
[1642622856745,45.81665141,136.54,136.41,27.507]
[1642622856947,33.3301,136.53,136.41,27.507]
[1642622858055,39.09737318,136.51,136.41,27.507]
[1642622858246,73.17,136.5,136.41,27.507]
[1642622858451,39.09737318,136.51,136.41,27.507]
[1642622859447,62.30547318,136.51,136.41,27.507]
[1642622859846,62.30547318,136.51,136.41,24.577]
[1642622860048,62.30547318,136.51,136.42,23.8863]
[1642622860446,62.30547318,136.51,136.43,35.65548665]
[1642622860646,62.30547318,136.51,136.42,23.8863]
[1642622862149,62.30547318,136.51,136.41,24.577]
[1642622862349,69.48347318,136.51,136.41,24.577]
[1642622862552,69.48347318,136.51,136.42,0.25]
[1642622862949,69.48347318,136.51,136.42,23.504]
[1642622863851,62.30547318,136.51,136.42,23.504]
[1642622864050,62.30547318,136.51,136.42,23.254]
[1642622864449,62.30547318,136.51,136.43,0.25]
[1642622864651,39.09737318,136.51,136.43,0.25]
[1642622864849,39.09737318,136.51,136.43,35.36486324]
[1642622865052,1.62831907,136.52,136.43,35.36486324]
[1642622865549,11.1232,136.54,136.43,35.36486324]
[1642622865752,24.3775,136.55,136.44,2.93]
[1642622865953,44.73524165,136.54,136.45,23.6674]
[1642622866151,44.73524165,136.54,136.45,23.9174]
[1642622866762,44.73524165,136.54,136.45,23.6674]
[1642622867552,44.73524165,136.54,136.43,2.93]
[1642622867754,73.17,136.52,136.43,2.93]
[1642622867960,80.615,136.52,136.43,2.93]
[1642622868453,39.42132969,136.51,136.43,2.93]
[1642622868654,39.42132969,136.51,136.41,24.577]
[1642622868856,64.01962969,136.51,136.41,24.577]
[1642622870658,64.01962969,136.51,136.42,24.8501]
[1642622870959,64.01962969,136.51,136.42,45.29120635]
[1642622871658,64.01962969,136.51,136.42,24.8501]
[1642622873663,64.01962969,136.51,136.42,24.6001]
[1642622873859,64.01962969,136.51,136.39,13.441]
[1642622874059,69.72462969,136.51,136.4,6.0]
[1642622874259,69.72462969,136.51,136.39,13.441]
[1642622874260,71.55175571,136.51,136.39,13.441]
[1642622874459,71.55175571,136.51,136.39,2.931]
[1642622874659,82.06175571,136.51,136.39,2.931]
[1642622875361,73.17,136.5,136.4,0.25]
[1642622875762,24.2454,136.49,136.38,22.75027971]
[1642622876163,24.2454,136.49,136.39,0.25]
[1642622876362,97.4154,136.49,136.39,0.25]
[1642622876662,41.64320321,136.48,136.39,0.25]
[1642622877865,41.64320321,136.48,136.39,12.89649531]
[1642622878268,41.64320321,136.48,136.4,22.7531]
[1642622878668,41.64320321,136.48,136.41,0.25]
[1642622879668,24.2454,136.49,136.41,0.25]
[1642622880069,10.51,136.51,136.41,0.25]
[1642622880472,25.49221604,136.53,136.41,0.25]
[1642622880671,43.5177128,136.52,136.41,0.25]
[1642622881275,43.5177128,136.52,136.41,16.76]
[1642622881572,43.5177128,136.52,136.42,39.64073692]
[1642622881775,43.5177128,136.52,136.43,27.7145]
[1642622881975,43.5177128,136.52,136.43,33.7145]
[1642622882173,43.5177128,136.52,136.43,24.7835]
[1642622882372,43.5177128,136.52,136.44,6.0]
[1642622882775,43.5177128,136.52,136.45,0.25]
[1642622882981,34.7051,136.56,136.45,0.25]
[1642622883176,24.1951,136.56,136.45,29.7733]
[1642622883376,24.0911,136.57,136.46,10.51]
[1642622883578,24.0911,136.57,136.47,24.5405]
[1642622883775,24.0911,136.57,136.47,24.7905]
[1642622883976,47.23491307,136.56,136.47,24.7905]
[1642622887102,47.23491307,136.56,136.48,2.93]
[1642622887302,47.23491307,136.56,136.49,44.86208188]
[1642622888103,73.17,136.59,136.49,44.86208188]
[1642622888304,25.28111535,136.6,136.5,27.5442]
[1642622888506,23.58071535,136.61,136.5,27.5442]
[1642622888806,14.914004,136.59,136.51,0.25]
[1642622889004,69.47557093,136.6,136.51,0.25]
[1642622889204,43.28301393,136.6,136.51,0.25]
[1642622889404,14.914004,136.59,136.51,0.25]
[1642622890805,14.914004,136.59,136.52,2.928]
[1642622891206,43.28301393,136.6,136.53,0.25]
[1642622891706,43.28301393,136.6,136.51,47.28268805]
[1642622893614,1.95981535,136.63,136.51,47.28268805]
[1642622893814,1.95981535,136.63,136.52,23.326]
[1642622894018,59.71771535,136.64,136.53,2.928]
[1642622894616,36.63106177,136.63,136.53,2.928]
[1642622894816,73.17,136.62,136.54,0.25]
[1642622895017,73.17,136.62,136.53,0.25]
[1642622896320,97.2555,136.62,136.53,0.25]
[1642622898924,99.08262602,136.62,136.53,0.25]
[1642622899621,99.08262602,136.62,136.52,23.326]
[1642622899824,39.928824,136.61,136.51,2.928]
[1642622900021,29.418824,136.6,136.48,24.1387]
[1642622900221,26.25232602,136.6,136.48,24.1387]
[1642622900420,124.01464594,136.59,136.48,24.1387]
[1642622900922,49.01751992,136.59,136.48,24.1387]
[1642622901223,49.01751992,136.59,136.49,0.25]
[1642622901423,49.01751992,136.59,136.5,2.928]
[1642622901622,49.01751992,136.59,136.5,25.8419]
[1642622902924,49.01751992,136.59,136.5,40.18265914]
[1642622903327,49.01751992,136.59,136.51,0.25]
[1642622903727,49.01751992,136.59,136.52,2.928]
[1642622904125,49.01751992,136.59,136.53,0.25]
[1642622904930,15.420768,136.58,136.52,2.928]
[1642622905126,15.420768,136.58,136.49,23.5858]